Workbook

Sheet WA Gas - Sched 191
D4: GEN SERVICE | E4: LRG GEN SVC | F4: INTERRUPTIBLE | G4: TRANSPORT | H4: TRANSPORT
A5: Source | C5: TOTAL | D5: SCHEDULE 101&102 | E5: SCH. 111,112&116 | F5: SCH. 131&132 | G5: SCHEDULE 146 | H5: SCHEDULE 148
A7: Forecast | B7: Total Annual Therms | C7: =SUM(D7:H7) -> 197762235.9 | D7: =SUM('Revenue - current rates'!K4:V4) -> 138237023 | E7: =SUM('Revenue - current rates'!K5:V5) -> 58614643.9 | F7: =SUM('Revenue - current rates'!K6:V6) -> 910568.9833 | K7: August 2022 - July 2024
B9: Present DSM Rates | D9: 0.03028 | E9: 0.01626 | F9: 0.01132
B11: Present Gross DSM Revenue | C11: =SUM(D11:H11) -> 5149198.808 | D11: =D7*D9 -> 4185817.057 | E11: =E7*E9 -> 953074.1098 | F11: =F7*F9 -> 10307.64089
A13: UG-200901 | B13: Base Revenue | C13: =SUM(D13:H13) -> 107579000 | D13: =ROUND('Base Revenue'!F14*1000,-3) -> 86814000 | E13: =ROUND('Base Revenue'!F15*1000,-3) -> 20539000 | F13: =ROUND('Base Revenue'!F16*1000,-3) -> 226000
B15: Percentage of Current Base Volumetric Revenue | C15: =SUM(D15:G15) -> 1 | D15: =D13/$C$13 -> 0.8069790573 | E15: =E13/$C$13 -> 0.190920161 | F15: =F13/$C$13 -> 0.002100781751
B17: Revenue Requirement | C17: 8725039.85
B19: Revenue Spread Based on Current Allocation | C19: =SUM(D19:G19) -> 8725039.85 | D19: =$C$17*D15 -> 7040924.433 | E19: =$C$17*E15 -> 1665786.013 | F19: =$C$17*F15 -> 18329.40449
B21: DSM Revenue Increase <Decrease> | C21: =SUM(D21:G21) -> 3575841.042 | D21: =D19-D11 -> 2855107.375 | E21: =E19-E11 -> 712711.9031 | F21: 8021.763603
B23: Proposed DSM Rates | D23: =D19/D7 -> 0.05093370993 | E23: =E19/E7 -> 0.02841928061 | F23: =F19/F7 -> 0.02012961657
B25: Percentage Increase <Decrease> | D25: =D19/D11-1 -> 0.6820908167 | E25: =E19/E11-1 -> 0.7478032357 | F25: 0.7782346793
B27: Present Billed Revenue | C27: =SUM(D27:H27) -> 182207000 | D27: 136764000 | E27: 40128000 | F27: 536000 | G27: 3256000 | H27: 1523000
B29: Proposed Billed Revenue | C29: =SUM(D29:H29) -> 185782841 | D29: =D27+D21 -> 139619107.4 | E29: =E27+E21 -> 40840711.9 | F29: 544021.7636 | G29: 3256000 | H29: 1523000
B31: Overall Billed Percentage Increase <Decrease> | C31: =C29/C27-1 -> 0.01962515733 | D31: =D29/D27-1 -> 0.02087616167 | E31: =E29/E27-1 -> 0.0177609625 | F31: =F29/F27-1 -> 0.01496597687 | G31: =G29/G27-1 -> 0 | H31: 0
B34: Present DSM Revenue as a Percentage of Billed Revenue | C34: =C11/C27 -> 0.02826015909
A37: UG-200901 | B37: Revenue Conversion Factor | C37: =RCF!C23 -> 0.956282
B39: Proposed Net DSM Revenue | C39: =SUM(D39:H39) -> 8343598.558 | D39: =D19*$C$37 -> 6733109.298 | E39: =E19*$C$37 -> 1592961.18 | F39: 17528.07959 | G39: 0 | H39: 0
B41: Proposed DSM Revenue as a % of Billed Revenue | C41: =C19/C27 -> 0.04788531643
C43: Present | D43: Proposed | E43: $ Inc/(Dec) | F43: % Inc/(Dec)
B44: Average Monthly Bill @ 67 Therms | C44: =C50+(C51*C49) -> 64.85607 | D44: =C50+(C51*(C49+(ROUND(D23,5)-D9))) -> 66.23962 | E44: =D44-C44 -> 1.38355 | F44: =E44/C44 -> 0.0213326216
B47: Change in Schedule 191 Rate | D47: =D23-D9 -> 0.02065370993
B49: Present Rate (first 70 therms) | C49: 0.82621
B50: Basic Charge | C50: 9.5
B51: Average Customer Usage | C51: 67

Sheet Revenue - current rates
A3: Forecasted Usage | D3: 2022-01-01 | E3: 2022-02-01 | F3: 2022-03-01 | G3: 2022-04-01 | H3: 2022-05-01 | I3: 2022-06-01 | J3: 2022-07-01 | K3: 2022-08-01 | L3: 2022-09-01 | M3: 2022-10-01 | N3: 2022-11-01 | O3: 2022-12-01 | P3: 2023-01-01 | Q3: 2023-02-01 | R3: 2023-03-01 | S3: 2023-04-01 | T3: 2023-05-01 | U3: 2023-06-01 | V3: 2023-07-01 | W3: 2023-08-01 | X3: 2023-09-01 | Y3: 2023-10-01 | Z3: 2023-11-01 | AA3: 2023-12-01 | AB3: 2024-01-01 | AC3: 2024-02-01 | AD3: 2024-03-01 | AE3: 2024-04-01 | AF3: 2024-05-01 | AG3: 2024-06-01 | AH3: 2024-07-01 | AJ3: 2022-2023 | AK3: 2023-2024
B4: Small Service Schedule 101 | G4: =G38 -> 0 | H4: =H38 -> 5070610.553 | I4: 3170130.372 | J4: 1812771.893 | K4: 2073438.084 | L4: 2968240.566 | M4: 9254547.346 | N4: 17143580.54 | O4: 26127031.46 | P4: 23816315.71 | Q4: 20619339.57 | R4: 16091512.44 | S4: 9894923.265 | T4: 5199750.493 | U4: 2945533.482 | V4: 2102810.077 | W4: 1903280.03 | X4: 3089788.902 | Y4: 8963927.346 | Z4: 17127558.92 | AA4: 25959555.35 | AB4: 23947467.54 | AC4: 20801110.46 | AD4: 16397869.91 | AE4: 10115068.39 | AF4: 5223536.623 | AG4: 3184810.345 | AH4: 2109689.422 | AJ4: =SUM(K4:V4) -> 138237023 | AK4: =SUM(W4:AH4) -> 138823663.2
B5: Large Service Schedule 111 | G5: =G39+G40 -> 0 | H5: =H39+H40 -> 2588626.593 | I5: 2011700.368 | J5: 1683906.77 | K5: 1742851.737 | L5: 2322414.869 | M5: 4924835.853 | N5: 7252306.499 | O5: 9372326.108 | P5: 8698800.567 | Q5: 7582269.989 | R5: 6291462.545 | S5: 4212964.475 | T5: 2544237.503 | U5: 1995612.28 | V5: 1674561.472 | W5: 1758920.354 | X5: 2348799.11 | Y5: 5019484.637 | Z5: 7361177.029 | AA5: 9522983.6 | AB5: 8825720.997 | AC5: 7695576.567 | AD5: 6390946.69 | AE5: 4285273.904 | AF5: 2590001.983 | AG5: 2037652.69 | AH5: 1698383.876 | AJ5: =SUM(K5:V5) -> 58614643.9 | AK5: =SUM(W5:AH5) -> 59534921.44
B6: Interrupt Service Schedule 131 | G6: =G42 -> 0 | H6: 45178.59204 | I6: 37951.01688 | J6: 36160.1912 | K6: 32707.67627 | L6: 40862.34537 | M6: 86622.76848 | N6: 113518.4873 | O6: 132358.8511 | P6: 118703.3352 | Q6: 106925.7984 | R6: 91577.37445 | S6: 66054.92839 | T6: 46918.89913 | U6: 39004.3011 | V6: 35314.2182 | W6: =W42 -> 31110.61143 | X6: 36840.78568 | Y6: 81394.07528 | Z6: 109609.0118 | AA6: 131031.0736 | AB6: 120036.6008 | AC6: 110133.3261 | AD6: 92090.46008 | AE6: 67113.19261 | AF6: 47922.48612 | AG6: 40123.22788 | AH6: 35752.29617 | AJ6: 910568.9833 | AK6: 903157.1475
B7: Transport Service Schedule 146 | G7: 0 | H7: =H43 -> 2825661 | I7: 2478607 | J7: 2304662 | K7: 2215419 | L7: 2255889 | M7: 2418396 | N7: 2921288 | O7: 3395034 | P7: 3728560 | Q7: 3846569 | R7: 3428664 | S7: 3327185 | T7: 2874605 | U7: 2555500 | V7: 2358850 | W7: =W43 -> 2223456 | X7: 2315682 | Y7: 2366203 | Z7: 2988871 | AA7: 3335564 | AB7: 3705380 | AC7: 3829526 | AD7: 3438126 | AE7: 3350365 | AF7: 2875023 | AG7: 2538856 | AH7: 2329248
B8: Special Contract Transport | G8: 0 | H8: 3408896 | I8: 3127311 | J8: 2936673 | K8: 2793896 | L8: 2920172 | M8: 2996541 | N8: 3546647 | O8: 3884589 | P8: 4299759 | Q8: 4338868 | R8: 3850822 | S8: 3830134 | T8: 3428840 | U8: 3134594 | V8: 2964348 | W8: =W44 -> 2806056 | X8: 2916767 | Y8: 3005728 | Z8: 3551884 | AA8: 3896302 | AB8: 4312962 | AC8: 4350528 | AD8: 3861329 | AE8: 3835979 | AF8: 3436820 | AG8: 3144062 | AH8: 2974418
A9: Total Forecasted Usage | D9: =SUM(D4:D8) -> 0 | E9: 0 | F9: 0 | G9: 0 | H9: 13938972.74 | I9: 10825699.76 | J9: 8774173.854 | K9: 8858312.497 | L9: 10507578.78 | M9: 19680942.97 | N9: 30977340.52 | O9: 42911339.42 | P9: 40662138.61 | Q9: 36493972.36 | R9: 29754038.36 | S9: 21331261.67 | T9: 14094351.89 | U9: 10670244.06 | V9: 9135883.767 | W9: 8722822.995 | X9: 10707877.8 | Y9: 19436737.06 | Z9: 31139099.96 | AA9: 42845436.03 | AB9: 40911567.13 | AC9: 36786874.35 | AD9: 30180362.06 | AE9: 21653799.49 | AF9: 14173304.09 | AG9: 10945504.26 | AH9: 9147491.594 | AJ9: =SUM(AJ4:AJ8) -> 197762235.9 | AK9: =SUM(AK4:AK8) -> 199261741.8 | AL9: =(AK9-AJ9)/AJ9 -> 0.007582367285
AJ10: ='WA Gas - Sched 191'!C7 -> 197762235.9
A12: DSM Rates
B13: Small Service Schedule 101 | D13: ='WA Gas - Sched 191'!$D$9 -> 0.03028 | E13: ='WA Gas - Sched 191'!$D$9 -> 0.03028 | F13: ='WA Gas - Sched 191'!$D$9 -> 0.03028 | G13: ='WA Gas - Sched 191'!$D$9 -> 0.03028 | H13: ='WA Gas - Sched 191'!$D$9 -> 0.03028 | I13: ='WA Gas - Sched 191'!$D$9 -> 0.03028 | J13: ='WA Gas - Sched 191'!$D$9 -> 0.03028 | K13: ='WA Gas - Sched 191'!$D$23 -> 0.05093370993 | L13: ='WA Gas - Sched 191'!$D$23 -> 0.05093370993 | M13: ='WA Gas - Sched 191'!$D$23 -> 0.05093370993 | N13: ='WA Gas - Sched 191'!$D$23 -> 0.05093370993 | O13: ='WA Gas - Sched 191'!$D$23 -> 0.05093370993 | P13: ='WA Gas - Sched 191'!$D$23 -> 0.05093370993 | Q13: ='WA Gas - Sched 191'!$D$23 -> 0.05093370993 | R13: ='WA Gas - Sched 191'!$D$23 -> 0.05093370993 | S13: ='WA Gas - Sched 191'!$D$23 -> 0.05093370993 | T13: ='WA Gas - Sched 191'!$D$23 -> 0.05093370993 | U13: ='WA Gas - Sched 191'!$D$23 -> 0.05093370993 | V13: ='WA Gas - Sched 191'!$D$23 -> 0.05093370993 | W13: ='WA Gas - Sched 191'!$D$23 -> 0.05093370993 | X13: ='WA Gas - Sched 191'!$D$23 -> 0.05093370993 | Y13: ='WA Gas - Sched 191'!$D$23 -> 0.05093370993 | Z13: ='WA Gas - Sched 191'!$D$23 -> 0.05093370993 | AA13: ='WA Gas - Sched 191'!$D$23 -> 0.05093370993 | AB13: ='WA Gas - Sched 191'!$D$23 -> 0.05093370993 | AC13: ='WA Gas - Sched 191'!$D$23 -> 0.05093370993 | AD13: ='WA Gas - Sched 191'!$D$23 -> 0.05093370993 | AE13: ='WA Gas - Sched 191'!$D$23 -> 0.05093370993 | AF13: ='WA Gas - Sched 191'!$D$23 -> 0.05093370993 | AG13: ='WA Gas - Sched 191'!$D$23 -> 0.05093370993 | AH13: ='WA Gas - Sched 191'!$D$23 -> 0.05093370993
B14: Large Service Schedule 111 | D14: ='WA Gas - Sched 191'!$E$9 -> 0.01626 | E14: ='WA Gas - Sched 191'!$E$9 -> 0.01626 | F14: ='WA Gas - Sched 191'!$E$9 -> 0.01626 | G14: ='WA Gas - Sched 191'!$E$9 -> 0.01626 | H14: ='WA Gas - Sched 191'!$E$9 -> 0.01626 | I14: ='WA Gas - Sched 191'!$E$9 -> 0.01626 | J14: ='WA Gas - Sched 191'!$E$9 -> 0.01626 | K14: ='WA Gas - Sched 191'!$E$23 -> 0.02841928061 | L14: ='WA Gas - Sched 191'!$E$23 -> 0.02841928061 | M14: ='WA Gas - Sched 191'!$E$23 -> 0.02841928061 | N14: ='WA Gas - Sched 191'!$E$23 -> 0.02841928061 | O14: ='WA Gas - Sched 191'!$E$23 -> 0.02841928061 | P14: ='WA Gas - Sched 191'!$E$23 -> 0.02841928061 | Q14: ='WA Gas - Sched 191'!$E$23 -> 0.02841928061 | R14: ='WA Gas - Sched 191'!$E$23 -> 0.02841928061 | S14: ='WA Gas - Sched 191'!$E$23 -> 0.02841928061 | T14: ='WA Gas - Sched 191'!$E$23 -> 0.02841928061 | U14: ='WA Gas - Sched 191'!$E$23 -> 0.02841928061 | V14: ='WA Gas - Sched 191'!$E$23 -> 0.02841928061 | W14: ='WA Gas - Sched 191'!$E$23 -> 0.02841928061 | X14: ='WA Gas - Sched 191'!$E$23 -> 0.02841928061 | Y14: ='WA Gas - Sched 191'!$E$23 -> 0.02841928061 | Z14: ='WA Gas - Sched 191'!$E$23 -> 0.02841928061 | AA14: ='WA Gas - Sched 191'!$E$23 -> 0.02841928061 | AB14: ='WA Gas - Sched 191'!$E$23 -> 0.02841928061 | AC14: ='WA Gas - Sched 191'!$E$23 -> 0.02841928061 | AD14: ='WA Gas - Sched 191'!$E$23 -> 0.02841928061 | AE14: ='WA Gas - Sched 191'!$E$23 -> 0.02841928061 | AF14: ='WA Gas - Sched 191'!$E$23 -> 0.02841928061 | AG14: ='WA Gas - Sched 191'!$E$23 -> 0.02841928061 | AH14: ='WA Gas - Sched 191'!$E$23 -> 0.02841928061
B15: Interrupt Service Schedule 131 | D15: ='WA Gas - Sched 191'!$F$9 -> 0.01132 | E15: ='WA Gas - Sched 191'!$F$9 -> 0.01132 | F15: ='WA Gas - Sched 191'!$F$9 -> 0.01132 | G15: ='WA Gas - Sched 191'!$F$9 -> 0.01132 | H15: ='WA Gas - Sched 191'!$F$9 -> 0.01132 | I15: ='WA Gas - Sched 191'!$F$9 -> 0.01132 | J15: ='WA Gas - Sched 191'!$F$9 -> 0.01132 | K15: ='WA Gas - Sched 191'!$F$23 -> 0.02012961657 | L15: ='WA Gas - Sched 191'!$F$23 -> 0.02012961657 | M15: ='WA Gas - Sched 191'!$F$23 -> 0.02012961657 | N15: ='WA Gas - Sched 191'!$F$23 -> 0.02012961657 | O15: ='WA Gas - Sched 191'!$F$23 -> 0.02012961657 | P15: ='WA Gas - Sched 191'!$F$23 -> 0.02012961657 | Q15: ='WA Gas - Sched 191'!$F$23 -> 0.02012961657 | R15: ='WA Gas - Sched 191'!$F$23 -> 0.02012961657 | S15: ='WA Gas - Sched 191'!$F$23 -> 0.02012961657 | T15: ='WA Gas - Sched 191'!$F$23 -> 0.02012961657 | U15: ='WA Gas - Sched 191'!$F$23 -> 0.02012961657 | V15: ='WA Gas - Sched 191'!$F$23 -> 0.02012961657 | W15: ='WA Gas - Sched 191'!$F$23 -> 0.02012961657 | X15: ='WA Gas - Sched 191'!$F$23 -> 0.02012961657 | Y15: ='WA Gas - Sched 191'!$F$23 -> 0.02012961657 | Z15: ='WA Gas - Sched 191'!$F$23 -> 0.02012961657 | AA15: ='WA Gas - Sched 191'!$F$23 -> 0.02012961657 | AB15: ='WA Gas - Sched 191'!$F$23 -> 0.02012961657 | AC15: ='WA Gas - Sched 191'!$F$23 -> 0.02012961657 | AD15: ='WA Gas - Sched 191'!$F$23 -> 0.02012961657 | AE15: ='WA Gas - Sched 191'!$F$23 -> 0.02012961657 | AF15: ='WA Gas - Sched 191'!$F$23 -> 0.02012961657 | AG15: ='WA Gas - Sched 191'!$F$23 -> 0.02012961657 | AH15: ='WA Gas - Sched 191'!$F$23 -> 0.02012961657
B16: Transport Service Schedule 146
B17: Special Contract Transport
B18: Total
A21: Gross DSM Revenue | D21: =D3 -> 2022-01-01 | E21: 2022-02-01 | F21: 2022-03-01 | G21: 2022-04-01 | H21: 2022-05-01 | I21: 2022-06-01 | J21: 2022-07-01 | K21: 2022-08-01 | L21: 2022-09-01 | M21: 2022-10-01 | N21: 2022-11-01 | O21: 2022-12-01 | P21: 2023-01-01 | Q21: 2023-02-01 | R21: 2023-03-01 | S21: 2023-04-01 | T21: 2023-05-01 | U21: 2023-06-01 | V21: 2023-07-01 | W21: 2023-08-01 | X21: 2023-09-01 | Y21: 2023-10-01 | Z21: 2023-11-01 | AA21: 2023-12-01 | AB21: 2024-01-01 | AC21: 2024-02-01 | AD21: 2024-03-01 | AE21: 2024-04-01 | AF21: 2024-05-01 | AG21: 2024-06-01 | AH21: 2024-07-01
B22: Small Service Schedule 101 | D22: =D4*D13 -> 0 | E22: 0 | F22: 0 | G22: 0 | H22: 153538.0876 | I22: 95991.54766 | J22: 54890.73291 | K22: 105607.8939 | L22: 151183.504 | M22: 471368.43 | N22: 873186.1583 | O22: 1330746.642 | P22: 1213053.316 | Q22: 1050219.461 | R22: 819600.427 | S22: 503985.1514 | T22: 264842.5833 | U22: 150026.948 | V22: 107103.9185 | W22: 96941.11294 | X22: 157374.4117 | Y22: 456566.0753 | Z22: 872370.1178 | AA22: 1322216.462 | AB22: 1219733.365 | AC22: 1059477.726 | AD22: 835204.3494 | AE22: 515197.9594 | AF22: 266054.0991 | AG22: 162214.2063 | AH22: 107454.3091
B23: Large Service Schedule 111 | D23: =D5*D14 -> 0 | E23: 0 | F23: 0 | G23: 0 | H23: 42091.0684 | I23: 32710.24799 | J23: 27380.32408 | K23: 49530.59257 | L23: 66001.35987 | M23: 139960.2921 | N23: 206105.3335 | O23: 266354.7657 | P23: 247213.6543 | Q23: 215482.6585 | R23: 178798.8395 | S23: 119729.4196 | T23: 72305.39953 | U23: 56713.86538 | V23: 47589.83238 | W23: 49987.25111 | X23: 66751.18102 | Y23: 142650.1424 | Z23: 209199.3556 | AA23: 270636.3432 | AB23: 250820.6416 | AC23: 218702.7499 | AD23: 181626.1074 | AE23: 121784.4016 | AF23: 73605.99313 | AG23: 57908.6236 | AH23: 48266.84795
B24: Interrupt Service Schedule 131 | D24: =D6*D15 -> 0 | E24: 0 | F24: 0 | G24: 0 | H24: 511.4216619 | I24: 429.6055111 | J24: 409.3333644 | K24: 658.3929821 | L24: 822.5433444 | M24: 1743.683116 | N24: 2285.083622 | O24: 2664.332922 | P24: 2389.452623 | Q24: 2152.375323 | R24: 1843.417434 | S24: 1329.660381 | T24: 944.4594494 | U24: 785.1416257 | V24: 710.8616719 | W24: 626.2446794 | X24: 741.5908899 | Y24: 1638.431526 | Z24: 2206.38738 | AA24: 2637.605269 | AB24: 2416.290749 | AC24: 2216.941626 | AD24: 1853.745651 | AE24: 1350.962834 | AF24: 964.6612707 | AG24: 807.6651928 | AH24: 719.6800133
B25: Transport Service Schedule 146
B26: Special Contract Transport
B27: Total | D27: =SUM(D22:D26) -> 0 | E27: 0 | F27: 0 | G27: 0 | H27: 196140.5776 | I27: 129131.4012 | J27: 82680.39036 | K27: 155796.8795 | L27: 218007.4072 | M27: 613072.4052 | N27: 1081576.575 | O27: 1599765.74 | P27: 1462656.423 | Q27: 1267854.495 | R27: 1000242.684 | S27: 625044.2314 | T27: 338092.4423 | U27: 207525.955 | V27: 155404.6125 | W27: 147554.6087 | X27: 224867.1836 | Y27: 600854.6492 | Z27: 1083775.861 | AA27: 1595490.411 | AB27: 1472970.297 | AC27: 1280397.418 | AD27: 1018684.202 | AE27: 638333.3239 | AF27: 340624.7535 | AG27: 220930.4951 | AH27: 156440.8371
A29: Net DSM Revenue | C29: =RCF!C23 -> 0.956282 | D29: =D21 -> 2022-01-01 | E29: =E21 -> 2022-02-01 | F29: 2022-03-01 | G29: 2022-04-01 | H29: 2022-05-01 | I29: 2022-06-01 | J29: 2022-07-01 | K29: 2022-08-01 | L29: 2022-09-01 | M29: 2022-10-01 | N29: 2022-11-01 | O29: 2022-12-01 | P29: 2023-01-01 | Q29: 2023-02-01 | R29: =R21 -> 2023-03-01 | S29: 2023-04-01 | T29: 2023-05-01 | U29: 2023-06-01 | V29: 2023-07-01 | W29: =W21 -> 2023-08-01 | X29: 2023-09-01 | Y29: 2023-10-01 | Z29: 2023-11-01 | AA29: 2023-12-01 | AB29: 2024-01-01 | AC29: 2024-02-01 | AD29: 2024-03-01 | AE29: 2024-04-01 | AF29: 2024-05-01 | AG29: 2024-06-01 | AH29: =AH21 -> 2024-07-01
B30: Small Service Schedule 101 | D30: =D22*$C$29 -> 0 | E30: =E22*$C$29 -> 0 | F30: 0 | G30: 0 | H30: 146825.7094 | I30: 91794.98918 | J30: 52491.01985 | K30: 100990.928 | L30: 144574.0636 | M30: 450761.145 | N30: 835012.2058 | O30: 1272569.06 | P30: 1160021.051 | Q30: 1004305.966 | R30: =R22*$C$29 -> 783769.1355 | S30: 481951.9285 | T30: 253264.1953 | U30: =U22*$C$29 -> 143468.0698 | V30: =V22*$C$29 -> 102421.5494 | W30: =W22*$C$29 -> 92703.04136 | X30: 150494.3171 | Y30: 436605.9196 | Z30: 834231.841 | AA30: 1264411.803 | AB30: 1166409.062 | AC30: 1013159.479 | AD30: 798690.8856 | AE30: 492674.5351 | AF30: 254422.746 | AG30: 155122.5256 | AH30: =AH22*$C$29 -> 102756.6216
B31: Large Service Schedule 111 | D31: =D23*$C$29 -> 0 | E31: 0 | F31: 0 | G31: 0 | H31: 40250.93107 | I31: 31280.22137 | J31: 26183.31108 | K31: 47365.21413 | L31: 63115.91242 | M31: 133841.508 | N31: 197094.8205 | O31: 254710.268 | P31: 236405.9678 | Q31: 206062.1876 | R31: =R23*$C$29 -> 170982.1119 | S31: 114495.0889 | T31: =T23*$C$29 -> 69144.35207 | U31: 54234.44862 | V31: 45509.30009 | W31: =W23*$C$29 -> 47801.90847 | X31: 63832.95289 | Y31: 136413.7635 | Z31: 200053.5782 | AA31: 258804.6635 | AB31: 239855.2648 | AC31: 209141.5031 | AD31: 173685.7772 | AE31: 116460.2311 | AF31: 70388.08632 | AG31: 55376.97439 | AH31: =AH23*$C$29 -> 46156.7179
B32: Interrupt Service Schedule 131 | D32: =D24*$C$29 -> 0 | E32: 0 | F32: 0 | G32: 0 | H32: 489.0633297 | I32: 410.8240174 | J32: 391.4381284 | K32: 629.6093577 | L32: 786.5833945 | M32: 1667.452777 | N32: 2185.184336 | O32: 2547.853615 | P32: 2284.990534 | Q32: 2058.277779 | R32: 1762.826911 | S32: 1271.530288 | T32: =T24*$C$29 -> 903.1695712 | U32: =U24*$C$29 -> 750.8168041 | V32: 679.7842213 | W32: 598.8665145 | X32: 709.1700194 | Y32: 1566.802577 | Z32: 2109.928536 | AA32: 2522.294442 | AB32: 2310.65535 | AC32: 2120.021372 | AD32: 1772.703599 | AE32: 1291.901441 | AF32: 922.4882093 | AG32: 772.3556859 | AH32: 688.2170425
B33: Transport Service Schedule 146
B34: Special Contract Transport
B35: Total | D35: =SUM(D30:D34) -> 0 | E35: 0 | F35: 0 | G35: 0 | H35: 187565.7038 | I35: 123486.0346 | J35: 79065.76905 | K35: 148985.7515 | L35: 208476.5594 | M35: 586270.1058 | N35: 1034292.211 | O35: 1529827.182 | P35: 1398712.009 | Q35: 1212426.432 | R35: 956514.0743 | S35: 597718.5477 | T35: 323311.7169 | U35: 198453.3353 | V35: 148610.6337 | W35: 141103.8163 | X35: 215036.44 | Y35: 574586.4857 | Z35: 1036395.348 | AA35: 1525738.761 | AB35: 1408574.982 | AC35: 1224421.004 | AD35: 974149.3664 | AE35: 610426.6676 | AF35: 325733.3206 | AG35: 211271.8557 | AH35: 149601.5565 | AJ35: =SUM(D35:V35) -> 8733716.065 | AK35: =AJ35+SUM('DSM Balance'!G3:Y3) -> 0
B38: WA101 | H38: 5070610.553 | I38: 3170130.372 | J38: 1812771.893 | K38: 2073438.084 | L38: 2968240.566 | M38: 9254547.346 | N38: 17143580.54 | O38: 26127031.46 | P38: 23816315.71 | Q38: 20619339.57 | R38: 16091512.44 | S38: 9894923.265 | T38: 5199750.493 | U38: 2945533.482 | V38: 2102810.077 | W38: 1903280.03 | X38: 3089788.902 | Y38: 8963927.346 | Z38: 17127558.92 | AA38: 25959555.35 | AB38: 23947467.54 | AC38: 20801110.46 | AD38: 16397869.91 | AE38: 10115068.39 | AF38: 5223536.623 | AG38: 3184810.345 | AH38: 2109689.422
B39: WA111 | H39: 2588626.593 | I39: 2011700.368 | J39: 1683906.77 | K39: 1742851.737 | L39: 2322414.869 | M39: 4924835.853 | N39: 7252306.499 | O39: 9372326.108 | P39: 8698800.567 | Q39: 7582269.989 | R39: 6291462.545 | S39: 4212964.475 | T39: 2544237.503 | U39: 1995612.28 | V39: 1674561.472 | W39: 1758920.354 | X39: 2348799.11 | Y39: 5019484.637 | Z39: 7361177.029 | AA39: 9522983.6 | AB39: 8825720.997 | AC39: 7695576.567 | AD39: 6390946.69 | AE39: 4285273.904 | AF39: 2590001.983 | AG39: 2037652.69 | AH39: 1698383.876
B40: WA112 | H40: 0 | I40: 0 | J40: 0 | K40: 0 | L40: 0 | M40: 0 | N40: 0 | O40: 0 | P40: 0 | Q40: 0 | R40: 0 | S40: 0 | T40: 0 | U40: 0 | V40: 0 | W40: 0 | X40: 0 | Y40: 0 | Z40: 0 | AA40: 0 | AB40: 0 | AC40: 0 | AD40: 0 | AE40: 0 | AF40: 0 | AG40: 0 | AH40: 0
B41: WA121 -Discontinued | H41: 0 | I41: 0 | J41: 0 | K41: 0 | L41: 0 | M41: 0 | N41: 0 | O41: 0 | P41: 0 | Q41: 0 | R41: 0 | S41: 0 | T41: 0 | U41: 0 | V41: 0 | W41: 0 | X41: 0 | Y41: 0 | Z41: 0 | AA41: 0 | AB41: 0 | AC41: 0 | AD41: 0 | AE41: 0 | AF41: 0 | AG41: 0 | AH41: 0
B42: WA132 | H42: 45178.59204 | I42: 37951.01688 | J42: 36160.1912 | K42: 32707.67627 | L42: 40862.34537 | M42: 86622.76848 | N42: 113518.4873 | O42: 132358.8511 | P42: 118703.3352 | Q42: 106925.7984 | R42: 91577.37445 | S42: 66054.92839 | T42: 46918.89913 | U42: 39004.3011 | V42: 35314.2182 | W42: 31110.61143 | X42: 36840.78568 | Y42: 81394.07528 | Z42: 109609.0118 | AA42: 131031.0736 | AB42: 120036.6008 | AC42: 110133.3261 | AD42: 92090.46008 | AE42: 67113.19261 | AF42: 47922.48612 | AG42: 40123.22788 | AH42: 35752.29617
B43: WA146 | H43: 2825661 | I43: 2478607 | J43: 2304662 | K43: 2215419 | L43: 2255889 | M43: 2418396 | N43: 2921288 | O43: 3395034 | P43: 3728560 | Q43: 3846569 | R43: 3428664 | S43: 3327185 | T43: 2874605 | U43: 2555500 | V43: 2358850 | W43: 2223456 | X43: 2315682 | Y43: 2366203 | Z43: 2988871 | AA43: 3335564 | AB43: 3705380 | AC43: 3829526 | AD43: 3438126 | AE43: 3350365 | AF43: 2875023 | AG43: 2538856 | AH43: 2329248
B44: WA148 | H44: 3408896 | I44: 3127311 | J44: 2936673 | K44: 2793896 | L44: 2920172 | M44: 2996541 | N44: 3546647 | O44: 3884589 | P44: 4299759 | Q44: 4338868 | R44: 3850822 | S44: 3830134 | T44: 3428840 | U44: 3134594 | V44: 2964348 | W44: 2806056 | X44: 2916767 | Y44: 3005728 | Z44: 3551884 | AA44: 3896302 | AB44: 4312962 | AC44: 4350528 | AD44: 3861329 | AE44: 3835979 | AF44: 3436820 | AG44: 3144062 | AH44: 2974418
H47: =SUM(H38:H44)-H9 -> 0 | I47: 0 | J47: 0 | K47: 0 | L47: 0 | M47: 0 | N47: 0 | O47: 0 | P47: 0 | Q47: 0 | R47: 0 | S47: 0 | T47: 0 | U47: 0 | V47: 0 | W47: 0 | X47: 0 | Y47: 0 | Z47: 0 | AA47: 0 | AB47: 0 | AC47: 0 | AD47: 0 | AE47: 0 | AF47: 0 | AG47: 0 | AH47: 0

Sheet DSM Balance
A1: End of July 2022 Balance | B1: =M8 -> 2323619.98 | C1: Surcharge/(Rebate) | M1: 2022 | Y1: =M1+1 -> 2023 | AK1: =Y1+1 -> 2024
A2: Aug 2022 - July 2024 Expenditure Budget | B2: =SUM(N4:AK4) -> 14417018.18 | F2: End December | G2: End January | H2: End February | I2: End March | J2: End April | K2: End May | L2: End June | M2: End July | N2: End August | O2: End September | P2: End October | Q2: End November | R2: End December | S2: End January | T2: End February | U2: End March | V2: End April | W2: End May | X2: End June | Y2: End July | Z2: End August | AA2: End September | AB2: End October | AC2: End November | AD2: End December | AE2: End January | AF2: End February | AG2: End March | AH2: End April | AI2: End May | AJ2: End June | AK2: End July
A3: Total Projected DSM Balance + Expenditures | B3: =B1+B2 -> 16740638.16 | E3: Expected gas tariff rider revenue | K3: =-'Revenue - current rates'!H35 -> -187565.7038 | L3: =-'Revenue - current rates'!I35 -> -123486.0346 | M3: =-'Revenue - current rates'!J35 -> -79065.76905 | N3: =-'Revenue - current rates'!K35 -> -148985.7515 | O3: =-'Revenue - current rates'!L35 -> -208476.5594 | P3: =-'Revenue - current rates'!M35 -> -586270.1058 | Q3: =-'Revenue - current rates'!N35 -> -1034292.211 | R3: =-'Revenue - current rates'!O35 -> -1529827.182 | S3: =-'Revenue - current rates'!P35 -> -1398712.009 | T3: =-'Revenue - current rates'!Q35 -> -1212426.432 | U3: =-'Revenue - current rates'!R35 -> -956514.0743 | V3: =-'Revenue - current rates'!S35 -> -597718.5477 | W3: =-'Revenue - current rates'!T35 -> -323311.7169 | X3: =-'Revenue - current rates'!U35 -> -198453.3353 | Y3: =-'Revenue - current rates'!V35 -> -148610.6337 | Z3: =-'Revenue - current rates'!W35 -> -141103.8163 | AA3: =-'Revenue - current rates'!X35 -> -215036.44 | AB3: =-'Revenue - current rates'!Y35 -> -574586.4857 | AC3: =-'Revenue - current rates'!Z35 -> -1036395.348 | AD3: =-'Revenue - current rates'!AA35 -> -1525738.761 | AE3: =-'Revenue - current rates'!AB35 -> -1408574.982 | AF3: =-'Revenue - current rates'!AC35 -> -1224421.004 | AG3: =-'Revenue - current rates'!AD35 -> -974149.3664 | AH3: =-'Revenue - current rates'!AE35 -> -610426.6676 | AI3: =-'Revenue - current rates'!AF35 -> -325733.3206 | AJ3: =-'Revenue - current rates'!AG35 -> -211271.8557 | AK3: =-'Revenue - current rates'!AH35 -> -149601.5565
E4: Expected DSM cash expenditures | K4: 484214.8226 | L4: 471091.1526 | M4: 454553.1026 | N4: 647281.9526 | O4: 572621.8926 | P4: 383058.2326 | Q4: 615456.6426 | R4: 854927.3926 | S4: 609493.0676 | T4: 477237.0876 | U4: 840961.7376 | V4: 440910.8005 | W4: 549061.1105 | X4: 535937.4405 | Y4: 519399.3905 | Z4: 712128.2405 | AA4: 637468.1805 | AB4: 447904.5205 | AC4: 680302.9305 | AD4: 919773.6805 | AE4: 609539.6905 | AF4: 477283.7105 | AG4: 840961.7376 | AH4: 440910.8005 | AI4: 549061.1105 | AJ4: =X4 -> 535937.4405 | AK4: =Y4 -> 519399.3905
A5: Net Revenue Projected to be Recovered | B5: =SUM(N3:AK3) -> -16740638.16 | C5: Aug 2022 - July 2024 | E5: Accounting Adjustment
E6: Net change in balance | K6: =K3+K4 -> 296649.1188 | L6: =L3+L4 -> 347605.118 | M6: =M3+M4 -> 375487.3336 | N6: =N3+N4 -> 498296.2011 | O6: 364145.3332 | P6: -203211.8732 | Q6: -418835.568 | R6: -674899.7892 | S6: -789218.9416 | T6: -735189.3442 | U6: -115552.3367 | V6: -156807.7472 | W6: 225749.3936 | X6: 337484.1052 | Y6: 370788.7568 | Z6: =Z3+Z4 -> 571024.4241 | AA6: 422431.7405 | AB6: -126681.9652 | AC6: -356092.4173 | AD6: -605965.0805 | AE6: -799035.2915 | AF6: -747137.293 | AG6: -133187.6288 | AH6: -169515.8671 | AI6: 223327.7899 | AJ6: 324665.5848 | AK6: 369797.8339
A7: Total Projected DSM Balance (July 2024) | B7: =B3+B5 -> 0 | C7: Underfunded (Surcharge)
E8: Gas Tariff rider balance | J8: 1303878.41 | K8: =K6+J8 -> 1600527.529 | L8: =L6+K8 -> 1948132.647 | M8: =M6+L8 -> 2323619.98 | N8: =N6+M8 -> 2821916.181 | O8: =O6+N8 -> 3186061.515 | P8: =P6+O8 -> 2982849.641 | Q8: =Q6+P8 -> 2564014.073 | R8: =R6+Q8 -> 1889114.284 | S8: =S6+R8 -> 1099895.343 | T8: =T6+S8 -> 364705.9984 | U8: =U6+T8 -> 249153.6618 | V8: =V6+U8 -> 92345.9146 | W8: =W6+V8 -> 318095.3082 | X8: =X6+W8 -> 655579.4134 | Y8: =Y6+X8 -> 1026368.17 | Z8: =Z6+Y8 -> 1597392.594 | AA8: 2019824.335 | AB8: 1893142.37 | AC8: 1537049.952 | AD8: 931084.8718 | AE8: 132049.5804 | AF8: -615087.7127 | AG8: -748275.3415 | AH8: -917791.2086 | AI8: -694463.4187 | AJ8: -369797.8339 | AK8: -5.820766091e-10
A12: August 2022 - July 2024
A13: DSM Revenue | B13: =SUM(N3:Y3) -> -8343598.558 | E13: 2015 Washington gas DSM budget | G13: CY 2015 expected expenditures (From DSM Business Plan)
A14: DSM Expense | B14: =SUM(N4:Y4) -> 7046346.748 | E14: 2016 Washington gas DSM budget | G14: CY 2016 expected expenditures
B15: =B13+B14 -> -1297251.81 | E15: 2017 Washington gas DSM budget | G15: CY 2016 expected expenditures + 2%
E16: 2018 Washington gas DSM budget | G16: CY 2017 expected expenditures + 2%

Sheet Base Revenue
A1: AVISTA UTILITIES | L1: This worksheet pulls data from 'Pres & Prop Rev' tab.
A2: WASHINGTON NATURAL GAS
A3: PROPOSED INCREASE BY SERVICE SCHEDULE
A4: 12 MONTHS ENDED DECEMBER 31, 2019
A5: (000s of Dollars)
A6: From UG-200901 Compliance Filing, Attachment 2, Page 1
D8: Base Tariff | F8: Base Tariff | G8: Base | H8: Total Billed | J8: Percent | O8: Present
D9: Revenue | E9: Final | F9: Revenue | G9: Tariff | H9: Revenue | I9: Final | J9: Increase | K9: Gas | M9: Margin | O9: Margin
A10: Line | B10: Type of | C10: Schedule | D10: Under Present | E10: General | F10: Under Proposed | G10: Percent | H10: at Present | I10: General | J10: on Billed | K10: Costs | M10: Increase | O10: Revenue
A11: No. | B11: Service | C11: Number | D11: Rates(1) | E11: Change | F11: Rates | G11: Increase | H11: Rates (2) | I11: Change | J11: Revenue
B12: (a) | C12: (b) | D12: (c) | E12: (d) | F12: (e) | G12: (f) | H12: (g) | I12: (i) | J12: (j)
A14: 1 | B14: General Service | C14: 101/102 | D14: 79468.69043 | E14: 7344.941223 | F14: 86813.63165 | G14: =E14/D14 -> 0.09242559785 | H14: 122717.839 | I14: =E14 -> 7344.941223 | J14: =(+E14)/H14 -> 0.05985226994 | K14: =('[3]Pres & Prop Rev'!D46*[3]Exh3!E15)/1000 -> 46969.15564 | M14: =E14/(D14-K14) -> 0.2260014265 | O14: =D14-K14 -> 32499.53479 | P14: =I14/H14 -> 0.05985226994 | Q14: =#REF!/H14 -> 
A15: 2 | B15: Large General Service | C15: 111/112 | D15: 20145.48068 | E15: 393.4157572 | F15: 20538.89644 | G15: 0.01952873518 | H15: 38590.73451 | I15: =E15 -> 393.4157572 | J15: 0.01019456515 | K15: =('[3]Pres & Prop Rev'!E46*[3]Exh3!E19)/1000 -> 18143.07905 | M15: 0.196471952 | O15: 2002.401632 | P15: 0.01019456515 | Q15: =#REF!/H15 -> 
A16: 3 | B16: Interruptible Service | C16: 131/132 | D16: 216.98343 | E16: 8.574823885 | F16: 225.5582539 | G16: 0.03951833504 | H16: 472.20611 | I16: 8.574823885 | J16: 0.01815907017 | K16: =('[3]Pres & Prop Rev'!G46*[3]Exh3!E40)/1000 -> 375.3786108 | M16: -0.05413563621 | O16: -158.3951808 | P16: 0.01815907017 | Q16: =#REF!/H16 -> 
A17: 4 | B17: Transportation Service | C17: 146 | D17: 3580.860637 | E17: 330.9631852 | F17: 3911.823822 | G17: 0.09242559785 | H17: 3643.678327 | I17: 330.9631852 | J17: 0.09083216341 | K17: =('[3]Pres & Prop Rev'!H46*[3]Exh3!E49)/1000 -> 17.12491312 | M17: 0.09286973301 | O17: 3563.735723 | P17: 0.09083216341 | Q17: =#REF!/H17 -> 
A18: 5 | B18: Special Contracts | C18: 148 | D18: 1760.86369 | E18: 0 | F18: 1760.86369 | G18: 0 | H18: 1760.86369 | I18: 0 | J18: 0 | M18: 0 | O18: 1760.86369 | P18: 0 | Q18: =#REF!/H18 -> 
A19: 6 | B19: Total | D19: =SUM(D14:D18)-0.2 -> 105172.6789 | E19: =SUM(E14:E18) -> 8077.89499 | F19: =SUM(F14:F18) -> 113250.7739 | G19: 0.07680602108 | H19: =SUM(H14:H18)+1 -> 167186.3216 | I19: =SUM(I14:I18)-0.2 -> 8077.69499 | J19: 0.0483167218 | K19: =SUM(K14:K18) -> 65504.73821 | M19: 0.2036378712 | O19: 39667.94066 | P19: 0.04831552553 | Q19: =#REF!/H19 -> 
I20: =ROUND(I19-SUM(I14:I18),-1) -> 0 | J20: =ROUND(J19-SUM(J14:J18),0) -> 0
D22: =IF(Base1_Billing2=2,"Exhibit won't work until Base1_Billing2 range set to '1'","") -> 
A24: (1) Includes Purchase Adjustment Schedule 150; excludes all other rate adjustments.
A26: (2) Includes Schedule 150 (Purchase Gas Cost Adjustment), Schedule 155 (Gas Rate Adjustment),
A27: Schedule 191 (DSM Adjustment) and Schedule 192 (LIRAP Adjustment).
D29: =SUM(ROUND(D14:D18,0)) ->  | E29: =SUM(ROUND(E14:E18,0)) -> 8078 | F29: =SUM(ROUND(F14:F18,0)) -> 113252 | H29: =SUM(ROUND(H14:H18,0)) -> 167186 | J29: =SUM(ROUND(J14:J18,0)) -> 0
D30: =ROUND(D19,0)-D29 ->  | E30: =ROUND(E19,0)-E29 -> 0 | F30: =ROUND(F19,0)-F29 -> -1 | H30: =ROUND(H19,0)-H29 -> 0 | J30: =ROUND(J19,0)-J29 -> 0
G33: Rate Sch. | H33: Therms | I33: Sch 155 Rate | J33: Sch 155 Rate
G34: 112 | H34: 0 | I34: -0.01451 | J34: -0.00014 | K34: No 112's in test year
G35: 122 | H35: ='[3]Rev Runs CY'!O40 -> 665507 | I35: 0.00539 | J35: -0.00014

Sheet RCF
A1: AVISTA UTILITIES
A2: REVENUE CONVERSION FACTOR
A3: WASHINGTON NATURAL GAS
A4: TWELVE MONTHS ENDED DECEMBER 31, 2019
A7: From UG-200901
A10: Description | C10: Factor
A12: Revenues | C12: 1
A14: Expense:
A15: Uncollectibles | C15: 0.003326
A17: Commission Fees | C17: 0.002
A19: Washington Excise Tax | C19: 0.038392
A21: Total Expense | C21: =C15+C17+C19 -> 0.043718
A23: Net Operating Income Before FIT | C23: =C12-C21 -> 0.956282
A25: Federal Income Tax @ 21% | C25: 0.20081922
A27: REVENUE CONVERSION FACTOR | C27: =C23-C25 -> 0.75546278
